fUST/lending_fUST_20241229
["ID","MTS","AMOUNT","RATE_DAILY","PERIOD"]
[346960570,1735429848552,-500.0,0.00019305,2]
[346960571,1735429848564,-151.0,0.00019305,2]
[346960572,1735429848575,-151.0,0.00019305,2]
[346960573,1735429848588,-679.76,0.00019305,2]
[346960574,1735429848600,-694.07,0.00019305,2]
[346960575,1735429848613,-1650.12,0.00019307,2]
[346960576,1735429848624,-500.0,0.00019308,2]
[346960577,1735429848634,-151.0,0.00019308,2]
[346960578,1735429848645,-291.927766,0.00019308,2]
[346960579,1735429848657,-291.927766,0.00019308,2]
[346960580,1735429848668,-151.0,0.00019308,2]
[346960581,1735429848680,-1475.13,0.00019308,2]
[346960582,1735429848693,-151.0,0.00019308,2]
[346960583,1735429848705,-151.0,0.00019308,2]
[346960584,1735429848717,-248.4685598,0.00019387,2]
[346960585,1735429848729,-165.1157644,0.00019562,2]
[346960586,1735429848742,-718.97,0.00019577,2]
[346960587,1735429848755,-236.53,0.00019578,2]
[346960588,1735429848768,-884.32,0.00019578,2]
[346960589,1735429848780,-2318.55,0.00019578,2]
[346960590,1735429848791,-500.0,0.00019578,2]
[346960591,1735429848801,-10079.65,0.00019578,2]
[346960592,1735429848811,-500.0,0.00019578,2]
[346960593,1735429848822,-500.0,0.00019578,2]
[346960594,1735429848834,-820.39,0.00019578,2]
[346960595,1735429848847,-500.0,0.00019578,2]
[346960596,1735429848860,-500.0,0.00019578,2]
[346960597,1735429848871,-500.0,0.00019578,2]
[346960598,1735429848880,-500.0,0.00019578,2]
[346960599,1735429848891,-417.76,0.00019578,2]
[346960600,1735429848902,-232.121085,0.00019578,2]
[346960601,1735429848914,-232.121085,0.00019578,2]
[346960602,1735429848926,-500.0,0.00019579,2]
[346960603,1735429848936,-151.0,0.00019579,2]
[346960604,1735429848945,-151.0,0.00019579,2]
[346960605,1735429848956,-151.0,0.00019579,2]
[346960606,1735429848968,-163.19622,0.00019579,2]
[346960607,1735429848978,-151.0,0.00019579,2]
[346960608,1735429848989,-694.07,0.00019579,2]
[346960609,1735429849000,-151.0,0.0001958,2]
[346960610,1735429849011,-412.731789,0.0001958,2]
[346960611,1735429849022,-412.731789,0.0001958,2]
[346960612,1735429849033,-231.479558,0.0001958,2]
[346960613,1735429849044,-1139.554738,0.0001958,2]
[346960614,1735429849055,-1139.554738,0.0001958,2]
[346960615,1735429849067,-151.0,0.0001958,2]
[346960616,1735429849077,-1650.12,0.00019581,2]
[346960617,1735429849088,-399.48150246,0.00019582,2]
[346960618,1735429849099,-679.76,0.00019582,2]
[346960619,1735429849109,-1475.13,0.00019582,2]
[346960620,1735429849120,-151.0,0.00019583,2]
[346960621,1735429849131,-861.5745508,0.00019588,2]
[346960622,1735429849141,-151.0,0.000198,2]
[346960623,1735429849151,-718.97,0.00019851,2]
[346960624,1735429849162,-884.32,0.00019852,2]
[346960625,1735429849172,-2318.55,0.00019852,2]
[346960626,1735429849183,-500.0,0.00019852,2]
[346960627,1735429849194,-10079.65,0.00019852,2]
[346960628,1735429849204,-500.0,0.00019852,2]
[346960629,1735429849215,-500.0,0.00019852,2]
[346960630,1735429849226,-820.39,0.00019852,2]
[346960631,1735429849237,-417.32,0.00019852,2]
[346960632,1735429849249,-500.0,0.00019852,2]
[346960633,1735429849260,-500.0,0.00019852,2]
[346960634,1735429849271,-500.0,0.00019852,2]
[346960635,1735429849282,-151.0,0.00019852,2]
[346960636,1735429849293,-275.3999,0.00019852,2]
[346960637,1735429849302,-283.28874971,0.00019853,2]
[346960638,1735429849311,-1274.20618,0.00019853,2]
[346960639,1735429849320,-155.326582,0.00019853,2]
[346960640,1735429849329,-155.326582,0.00019853,2]
[346960641,1735429849338,-500.0,0.00019853,2]
[346960642,1735429849347,-694.07,0.00019853,2]
[346960643,1735429849357,-151.0,0.00019854,2]
[346960644,1735429849366,-151.0,0.00019854,2]
[346960645,1735429849376,-151.0,0.00019854,2]
[346960646,1735429849385,-151.0,0.00019854,2]
[346960647,1735429849394,-291.927766,0.00019854,2]
[346960648,1735429849515,-291.927766,0.00019854,2]
[346960649,1735429849525,-151.0,0.00019854,2]
[346960650,1735429849535,-1650.12,0.00019855,2]
[346960651,1735429849545,-1475.13,0.00019856,2]
[346960652,1735429849554,-1748.66932147,0.0001987,2]
[346960653,1735429849563,-679.76,0.00019998,2]
[346960654,1735429849573,-679.76,0.00019999,2]
[346960655,1735429849582,-679.76,0.00019999,2]
[346960656,1735429849592,-679.76,0.00019999,2]
[346960657,1735429849601,-679.76,0.00019999,2]
[346960658,1735429849612,-679.76,0.00019999,2]
[346960659,1735429849621,-500.0,0.00019999,2]
[346960660,1735429849630,-500.0,0.00019999,2]
[346960661,1735429849640,-500.0,0.00019999,2]
[346960662,1735429849649,-500.0,0.00019999,2]
[346960663,1735429849660,-500.0,0.00019999,2]
[346960664,1735429849670,-500.0,0.00019999,2]
[346960665,1735429849679,-232.121085,0.00019999,2]
[346960666,1735429849688,-232.121085,0.00019999,2]
[346960667,1735429849698,-65791.15079906,0.0002,3]
[346960671,1735430160795,648.712,0.000255,30]
[346960688,1735430488488,-552.23,0.00025646,120]
[346960691,1735430740109,-154.02112611,0.00013695,2]
[346960692,1735430740133,-154.02112611,0.00013833,2]
[346960693,1735430740159,-400.0,0.00013973,2]
[346960694,1735430740187,-165.22867047,0.00017559,2]
[346960695,1735430740208,-300.0,0.00017656,2]
[346960696,1735430740230,-467.28028702,0.00017657,2]
[346960697,1735430740252,-500.0,0.00017657,2]
[346960698,1735430740273,-380.00059124,0.00017657,2]
[346960699,1735430740296,-262.96200336,0.00017657,2]
[346960701,1735430835099,-154.02112611,0.00013422,2]
[346960702,1735430835125,-154.02112611,0.00013558,2]
[346960703,1735430835147,-557.2449499,0.0001756,2]
[346960704,1735430835169,-300.0,0.00017656,2]
[346960705,1735430835193,-102.76289544,0.00017657,2]
[346960706,1735430835216,-74.48732729,0.00017657,2]
[346960707,1735430838142,-425.51267271,0.00017657,2]
[346960708,1735430838168,-500.0,0.00017657,2]
[346960709,1735430838196,-500.0,0.00017657,2]
[346960710,1735430838222,-517.98784081,0.00017657,2]
[346960711,1735430838245,-315.42758099,0.00017657,2]
[346960712,1735430838274,-89.9156109,0.00017658,2]
[346960713,1735430845102,-749.86074445,0.00017481,2]
[346960714,1735430845124,-288.41094654,0.00017658,2]
[346960715,1735430849103,-121.67344256,0.00017658,2]
[346960716,1735430849124,-434.63005928,0.00017658,2]
[346960717,1735430849144,-155.412,0.00017658,2]
[346960718,1735430849164,-279.31283518,0.00017658,2]
[346960719,1735430849186,-500.0,0.00017658,2]
[346960720,1735430849207,-162.4516418,0.00017658,2]
[346960752,1735431031958,-829.71314745,0.00017481,2]
[346960753,1735431031968,-500.0,0.00017657,2]
[346960755,1735431031978,-600.87,0.00017657,2]
[346960757,1735431031988,-180.0,0.00017657,2]
[346960758,1735431031997,-500.0,0.00017657,2]
[346960759,1735431032007,-500.0,0.00017657,2]
[346960760,1735431032016,-337.5483582,0.00017658,2]
[346960761,1735431032026,-500.0,0.00017658,2]
[346960762,1735431032035,-500.0,0.00017658,2]
[346960763,1735431032045,-500.0,0.00017658,2]
[346960764,1735431032055,-500.0,0.00017658,2]
[346960765,1735431032065,-200.0,0.00017658,2]
[346960766,1735431032074,-500.0,0.00017658,2]
[346960767,1735431032083,-500.0,0.00017658,2]
[346960768,1735431032093,-500.0,0.00017658,2]
[346960769,1735431032103,-500.0,0.00017658,2]
[346960770,1735431032112,-500.0,0.00017658,2]
[346960771,1735431032122,-500.0,0.00017658,2]
[346960772,1735431032132,-500.0,0.00017658,2]
[346960773,1735431032141,-500.0,0.00017658,2]
[346960774,1735431032151,-500.0,0.00017658,2]
[346960775,1735431032161,-500.0,0.00017658,2]
[346960776,1735431032170,-508.64858031,0.00017658,2]
[346960777,1735431032181,-500.0,0.00017658,2]
[346960778,1735431032190,-500.0,0.00017658,2]
[346960779,1735431032199,-324.95758814,0.00017658,2]
[346960780,1735431032209,-500.0,0.00017658,2]
[346960781,1735431032218,-500.0,0.00017658,2]
[346960782,1735431032229,-500.0,0.00017658,2]
[346960783,1735431032241,-500.0,0.00017658,2]
[346960784,1735431032251,-500.0,0.00017658,2]
[346960785,1735431032261,-500.0,0.00017658,2]
[346960786,1735431032270,-500.0,0.00017658,2]
[346960787,1735431032280,-500.0,0.00017658,2]
[346960788,1735431032289,-500.0,0.00017658,2]
[346960789,1735431032300,-500.0,0.00017658,2]
[346960790,1735431032309,-270.35173352,0.00017658,2]
[346960791,1735431032319,-500.0,0.00017658,2]
[346960792,1735431032328,-500.0,0.00017658,2]
[346960793,1735431032337,-500.0,0.00017658,2]
[346960794,1735431032347,-500.0,0.00017658,2]
[346960795,1735431032356,-500.0,0.00017658,2]
[346960796,1735431032366,-500.0,0.00017658,2]
[346960797,1735431032375,-500.0,0.00017658,2]
[346960798,1735431032386,-500.0,0.00017658,2]
[346960799,1735431032396,-500.0,0.00017658,2]
[346960800,1735431032405,-500.0,0.00017658,2]
[346960801,1735431032414,-500.0,0.00017658,2]
[346960802,1735431032424,-500.0,0.00017658,2]
[346960803,1735431032434,-594.59031257,0.00017658,2]
[346960804,1735431032443,-500.0,0.00017658,2]
[346960805,1735431032453,-500.0,0.00017658,2]
[346960806,1735431032462,-500.0,0.00017658,2]
[346960807,1735431032472,-500.0,0.00017658,2]
[346960808,1735431032482,-500.0,0.00017658,2]
[346960809,1735431032491,-500.0,0.00017658,2]
[346960810,1735431032501,-625.12521008,0.00017658,2]
[346960811,1735431032511,-313.60912966,0.00017658,2]
[346960812,1735431032529,-186.39087034,0.00017658,2]
[346960813,1735431032538,-197.62874935,0.00017658,2]
[346960814,1735431032547,-500.0,0.00017658,2]
[346960815,1735431032557,-500.0,0.00017658,2]
[346960816,1735431032566,-500.0,0.00017658,2]
[346960817,1735431032575,-584.9175672,0.00017658,2]
[346960818,1735431032585,-500.0,0.00017658,2]
[346960819,1735431032595,-1392.36,0.00017658,2]
[346960820,1735431032605,-500.0,0.00017658,2]
[346960821,1735431032616,-500.0,0.00017658,2]
[346960822,1735431032625,-500.0,0.00017658,2]
[346960823,1735431032634,-500.0,0.00017658,2]
[346960824,1735431032644,-500.0,0.00017658,2]
[346960825,1735431032653,-295.72456444,0.00017658,2]
[346960826,1735431032662,-500.0,0.00017658,2]
[346960827,1735431032672,-1449.09,0.00017658,2]
[346960828,1735431032681,-500.0,0.00017658,2]
[346960829,1735431032793,-500.0,0.00017658,2]
[346960830,1735431032802,-500.0,0.00017658,2]
[346960831,1735431032812,-500.0,0.00017658,2]
[346960832,1735431032821,-500.0,0.00017658,2]
[346960833,1735431032831,-500.0,0.00017658,2]
[346960834,1735431032841,-500.0,0.00017658,2]
[346960835,1735431032850,-500.0,0.00017658,2]
[346960836,1735431032859,-501.69117398,0.00017658,2]
[346960837,1735431032869,-500.0,0.00017658,2]
[346960838,1735431032878,-500.0,0.00017658,2]
[346960839,1735431032887,-500.0,0.00017658,2]
[346960840,1735431032896,-500.0,0.00017658,2]
[346960841,1735431032905,-500.0,0.00017658,2]
[346960842,1735431032915,-500.0,0.00017658,2]
[346960843,1735431032924,-500.0,0.00017658,2]
[346960844,1735431032934,-500.0,0.00017658,2]
[346960845,1735431032944,-500.0,0.00017658,2]
[346960846,1735431032953,-500.0,0.00017658,2]
[346960847,1735431032962,-500.0,0.00017658,2]
[346960848,1735431032971,-500.0,0.00017658,2]
[346960849,1735431032980,-500.0,0.00017658,2]
[346960850,1735431032989,-5468.73486736,0.00017658,2]
[346960871,1735431037758,-5990.84513264,0.00017658,2]
[346960873,1735431037767,-638.68,0.00017658,2]
[346960875,1735431037777,-500.0,0.00017658,2]
[346960877,1735431037787,-500.0,0.00017658,2]
[346960878,1735431037796,-500.0,0.00017658,2]
[346960880,1735431037806,-355.61254878,0.00017658,2]
[346960881,1735431037864,-144.38745122,0.00017658,2]
[346960882,1735431037874,-381.93312066,0.00017658,2]
[346960883,1735431037918,-118.06687934,0.00017658,2]
[346960884,1735431037927,-500.0,0.00017658,2]
[346960885,1735431037938,-500.0,0.00017658,2]
[346960886,1735431037947,-500.0,0.00017658,2]
[346960887,1735431037956,-500.0,0.00017658,2]
[346960888,1735431037966,-500.0,0.00017658,2]
[346960889,1735431037975,-500.0,0.00017658,2]
[346960890,1735431037984,-500.0,0.00017658,2]
[346960891,1735431037994,-262.21809678,0.00017658,2]
[346960949,1735431042898,-237.78190322,0.00017658,2]
[346960950,1735431042908,-500.0,0.00017658,2]
[346960951,1735431042917,-165.87777854,0.00017658,2]
[346960952,1735431042930,-334.12222146,0.00017658,2]
[346960953,1735431042940,-500.0,0.00017658,2]
[346960954,1735431042949,-320.84200167,0.00017658,2]
[346960955,1735431042959,-500.0,0.00017658,2]
[346960956,1735431042968,-938.97,0.00017658,2]
[346960957,1735431042977,-228.72370452,0.00017658,2]
[346960958,1735431043011,-271.27629548,0.00017658,2]
[346960959,1735431043020,-371.66384918,0.00017658,2]
[346960964,1735431045880,-129.11521876,0.00017658,2]
[346960965,1735431045890,-500.0,0.00017658,2]
[346960966,1735431045899,-503.53139964,0.00017658,2]
[346960967,1735431045908,-500.0,0.00017658,2]
[346960968,1735431045917,-500.0,0.00017658,2]
[346960969,1735431045927,-500.0,0.00017658,2]
[346960970,1735431045936,-500.0,0.00017658,2]
[346960971,1735431045946,-500.0,0.00017658,2]
[346960972,1735431045956,-500.0,0.00017658,2]
[346960973,1735431045965,-500.0,0.00017658,2]
[346960974,1735431045975,-500.0,0.00017658,2]
[346960975,1735431045986,-500.0,0.00017658,2]
[346960976,1735431045995,-500.0,0.00017658,2]
[346960977,1735431046004,-500.0,0.00017658,2]
[346960978,1735431046014,-500.0,0.00017658,2]
[346960979,1735431046023,-500.0,0.00017658,2]
[346960980,1735431046032,-501.51882356,0.00017658,2]
[346960981,1735431046041,-617.96,0.00017658,2]
[346960983,1735431046052,-500.0,0.00017658,2]
[346960984,1735431046061,-500.0,0.00017658,2]
[346960985,1735431046071,-399.46238874,0.00017658,2]
[346960986,1735431046080,-500.0,0.00017659,2]
[346960987,1735431046089,-500.0,0.00017659,2]
[346960988,1735431046098,-500.0,0.00017659,2]
[346960989,1735431046108,-500.0,0.00017659,2]
[346960990,1735431046117,-503.0149452,0.00017659,2]
[346960991,1735431046126,-500.0,0.00017659,2]
[346960992,1735431046136,-500.0,0.00017659,2]
[346960993,1735431046146,-500.0,0.00017659,2]
[346960994,1735431046156,-578.53219428,0.00017659,2]
[346960995,1735431046166,-500.0,0.00017659,2]
[346960996,1735431046175,-280.77760564,0.00017659,2]
[346960997,1735431046184,-500.0,0.00017659,2]
[346960998,1735431046194,-500.0,0.00017659,2]
[346960999,1735431046203,-500.0,0.00017659,2]
[346961000,1735431046212,-500.0,0.00017659,2]
[346961001,1735431046222,-500.0,0.00017659,2]
[346961002,1735431046236,-500.0,0.00017659,2]
[346961003,1735431046246,-500.0,0.00017659,2]
[346961004,1735431046255,-500.0,0.00017659,2]
[346961005,1735431046264,-500.0,0.00017659,2]
[346961006,1735431046274,-500.0,0.00017659,2]
[346961007,1735431046283,-500.0,0.00017659,2]
[346961008,1735431046293,-500.0,0.00017659,2]
[346961009,1735431046303,-500.0,0.00017659,2]
[346961010,1735431046312,-500.0,0.00017659,2]
[346961011,1735431046321,-500.0,0.00017659,2]
[346961012,1735431046331,-525.14523659,0.00017659,2]
[346961013,1735431046340,-500.0,0.00017659,2]
[346961014,1735431046350,-500.0,0.00017659,2]
[346961015,1735431046360,-500.0,0.00017659,2]
[346961016,1735431046369,-500.0,0.00017659,2]
[346961017,1735431046381,-500.0,0.00017659,2]
[346961018,1735431046390,-500.0,0.00017659,2]
[346961019,1735431046399,-500.0,0.00017659,2]
[346961020,1735431046408,-500.0,0.00017659,2]
[346961021,1735431046418,-500.0,0.00017659,2]
[346961022,1735431046427,-500.0,0.00017659,2]
[346961023,1735431046437,-500.0,0.00017659,2]
[346961024,1735431046446,-500.0,0.00017659,2]
[346961025,1735431046456,-500.0,0.00017659,2]
[346961026,1735431046465,-208.89,0.00017659,2]
[346961027,1735431046476,-500.0,0.00017659,2]
[346961028,1735431046485,-500.0,0.00017659,2]
[346961029,1735431046494,-500.0,0.00017659,2]
[346961030,1735431046504,-500.0,0.00017659,2]
[346961031,1735431046514,-500.0,0.00017659,2]
[346961032,1735431046525,-500.0,0.00017659,2]
[346961033,1735431046534,-500.0,0.00017659,2]
[346961034,1735431046543,-500.0,0.00017659,2]
[346961035,1735431046553,-500.0,0.00017659,2]
[346961036,1735431046563,-500.0,0.00017659,2]
[346961037,1735431046574,-500.0,0.00017659,2]
[346961038,1735431046582,-500.0,0.00017659,2]
[346961039,1735431046592,-500.0,0.00017659,2]
[346961040,1735431046601,-500.0,0.00017659,2]
[346961041,1735431046611,-500.0,0.00017659,2]
[346961042,1735431046620,-500.0,0.00017659,2]
[346961043,1735431046629,-500.0,0.00017659,2]
[346961044,1735431046638,-1163.42,0.00017659,2]
[346961045,1735431046647,-500.0,0.00017659,2]
[346961046,1735431046656,-500.0,0.00017659,2]
[346961047,1735431046665,-500.0,0.00017659,2]
[346961048,1735431046675,-500.0,0.00017659,2]
[346961049,1735431046684,-500.0,0.00017659,2]
[346961050,1735431046778,-152.69044545,0.0001766,2]
[346961051,1735431046788,-500.0,0.0001766,2]
[346961052,1735431046797,-500.0,0.0001766,2]
[346961053,1735431046806,-500.0,0.0001766,2]
[346961054,1735431046816,-500.0,0.0001766,2]
[346961055,1735431046825,-500.0,0.0001766,2]
[346961056,1735431046834,-1667.91,0.00017661,2]
[346961057,1735431046843,-500.0,0.00017662,2]
[346961058,1735431046853,-482.2687436,0.00017662,2]
[346961059,1735431046862,-500.0,0.00017662,2]
[346961060,1735431046871,-500.0,0.00017662,2]
[346961061,1735431046880,-500.0,0.00017662,2]
[346961062,1735431046889,-1974.64,0.00017662,2]
[346961063,1735431046898,-500.0,0.00017662,2]
[346961064,1735431046907,-500.0,0.00017662,2]
[346961065,1735431046916,-500.0,0.00017662,2]
[346961066,1735431046925,-500.0,0.00017931,2]
[346961067,1735431046934,-600.87,0.00017931,2]
[346961068,1735431046945,-500.0,0.00017931,2]
[346961069,1735431046954,-500.0,0.00017931,2]
[346961070,1735431046963,-500.0,0.00017932,2]
[346961071,1735431046972,-500.0,0.00017932,2]
[346961072,1735431046981,-500.0,0.00017932,2]
[346961073,1735431046990,-500.0,0.00017932,2]
[346961074,1735431047000,-500.0,0.00017932,2]
[346961075,1735431047009,-500.0,0.00017932,2]
[346961076,1735431047018,-500.0,0.00017932,2]
[346961077,1735431047027,-500.0,0.00017932,2]
[346961078,1735431047036,-500.0,0.00017932,2]
[346961079,1735431047046,-500.0,0.00017932,2]
[346961080,1735431047055,-500.0,0.00017932,2]
[346961081,1735431047065,-500.0,0.00017932,2]
[346961082,1735431047074,-500.0,0.00017932,2]
[346961083,1735431047083,-500.0,0.00017932,2]
[346961084,1735431047092,-500.0,0.00017932,2]
[346961085,1735431047101,-500.0,0.00017932,2]
[346961086,1735431047111,-500.0,0.00017932,2]
[346961087,1735431047120,-500.0,0.00017932,2]
[346961088,1735431047129,-500.0,0.00017932,2]
[346961089,1735431047138,-505.25555965,0.00017932,2]
[346961090,1735431047148,-500.0,0.00017932,2]
[346961091,1735431047158,-500.0,0.00017932,2]
[346961092,1735431047168,-500.0,0.00017932,2]
[346961093,1735431047178,-500.0,0.00017932,2]
[346961094,1735431047188,-500.0,0.00017932,2]
[346961095,1735431047199,-343.66038789,0.00017932,2]
[346961096,1735431047208,-500.0,0.00017932,2]
[346961097,1735431047218,-500.0,0.00017932,2]
[346961098,1735431047228,-500.0,0.00017932,2]
[346961099,1735431047242,-500.0,0.00017932,2]
[346961100,1735431047252,-500.0,0.00017932,2]
[346961101,1735431047261,-500.0,0.00017932,2]
[346961102,1735431047270,-500.0,0.00017932,2]
[346961103,1735431047281,-500.0,0.00017932,2]
[346961104,1735431047290,-500.0,0.00017932,2]
[346961105,1735431047299,-500.0,0.00017932,2]
[346961106,1735431047310,-1392.36,0.00017932,2]
[346961107,1735431047319,-500.0,0.00017932,2]
[346961108,1735431047328,-500.0,0.00017932,2]
[346961109,1735431047339,-500.0,0.00017932,2]
[346961110,1735431047349,-500.0,0.00017932,2]
[346961111,1735431047358,-1449.09,0.00017932,2]
[346961112,1735431047367,-245.25,0.00017932,2]
[346961113,1735431047377,-500.0,0.00017932,2]
[346961114,1735431047386,-293.03,0.00017932,2]
[346961115,1735431047395,-500.0,0.00017932,2]
[346961116,1735431047405,-500.0,0.00017932,2]
[346961117,1735431047414,-500.0,0.00017932,2]
[346961118,1735431047423,-230.22,0.00017932,2]
[346961119,1735431047432,-500.0,0.00017932,2]
[346961120,1735431047443,-500.0,0.00017932,2]
[346961121,1735431047454,-500.0,0.00017932,2]
[346961122,1735431047464,-500.0,0.00017932,2]
[346961123,1735431047476,-11459.58,0.00017932,2]
[346961124,1735431047486,-638.68,0.00017932,2]
[346961125,1735431047496,-500.0,0.00017932,2]
[346961126,1735431047507,-500.0,0.00017932,2]
[346961127,1735431047516,-500.0,0.00017932,2]
[346961128,1735431047525,-500.0,0.00017932,2]
[346961129,1735431047534,-500.0,0.00017932,2]
[346961130,1735431047543,-500.0,0.00017932,2]
[346961131,1735431047553,-500.0,0.00017932,2]
[346961132,1735431047563,-500.0,0.00017932,2]
[346961133,1735431047572,-500.0,0.00017932,2]
[346961134,1735431047582,-500.0,0.00017932,2]
[346961135,1735431047591,-938.97,0.00017932,2]
[346961136,1735431047601,-559.57448212,0.00017932,2]
[346961137,1735431047611,-500.0,0.00017932,2]
[346961138,1735431047621,-500.0,0.00017932,2]
[346961139,1735431047631,-500.0,0.00017932,2]
[346961140,1735431047640,-500.0,0.00017932,2]
[346961141,1735431047650,-157.67,0.00017932,2]
[346961142,1735431047659,-500.0,0.00017932,2]
[346961143,1735431047669,-500.0,0.00017932,2]
[346961144,1735431047678,-500.0,0.00017932,2]
[346961145,1735431047687,-503.03649116,0.00017932,2]
[346961146,1735431047698,-500.0,0.00017932,2]
[346961147,1735431047708,-500.0,0.00017932,2]
[346961148,1735431047717,-500.0,0.00017932,2]
[346961149,1735431047727,-500.0,0.00017933,2]
[346961150,1735431047736,-500.0,0.00017933,2]
[346961151,1735431047746,-500.0,0.00017933,2]
[346961152,1735431047755,-500.0,0.00017933,2]
[346961153,1735431047764,-500.0,0.00017933,2]
[346961154,1735431047774,-500.0,0.00017933,2]
[346961155,1735431047783,-500.0,0.00017933,2]
[346961156,1735431047793,-500.0,0.00017933,2]
[346961157,1735431047803,-500.0,0.00017933,2]
[346961158,1735431047812,-500.0,0.00017933,2]
[346961159,1735431047822,-500.0,0.00017933,2]
[346961160,1735431047831,-500.0,0.00017933,2]
[346961161,1735431047842,-500.0,0.00017933,2]
[346961162,1735431047851,-500.0,0.00017933,2]
[346961163,1735431047861,-500.0,0.00017933,2]
[346961164,1735431047870,-283.67510786,0.00017933,2]
[346961165,1735431047879,-500.0,0.00017933,2]
[346961166,1735431047889,-500.0,0.00017933,2]
[346961167,1735431047898,-500.0,0.00017933,2]
[346961168,1735431047907,-500.0,0.00017933,2]
[346961169,1735431047917,-500.0,0.00017933,2]
[346961170,1735431047927,-500.0,0.00017933,2]
[346961171,1735431047937,-500.0,0.00017933,2]
[346961172,1735431047948,-500.0,0.00017933,2]
[346961173,1735431047958,-500.0,0.00017933,2]
[346961174,1735431047967,-500.0,0.00017933,2]
[346961175,1735431047977,-500.0,0.00017933,2]
[346961176,1735431047987,-500.0,0.00017933,2]
[346961177,1735431047996,-500.0,0.00017933,2]
[346961178,1735431048006,-500.0,0.00017933,2]
[346961179,1735431048015,-439.3,0.00017933,2]
[346961180,1735431048025,-500.0,0.00017933,2]
[346961181,1735431048035,-526.22,0.00017933,2]
[346961182,1735431048045,-500.0,0.00017933,2]
[346961183,1735431048054,-500.0,0.00017933,2]
[346961184,1735431048064,-500.0,0.00017933,2]
[346961185,1735431048073,-500.0,0.00017933,2]
[346961186,1735431048083,-1163.42,0.00017933,2]
[346961187,1735431048093,-500.0,0.00017933,2]
[346961188,1735431048103,-500.0,0.00017933,2]
[346961189,1735431048112,-500.0,0.00017933,2]
[346961190,1735431048122,-500.0,0.00017933,2]
[346961191,1735431048131,-500.0,0.00017933,2]
[346961192,1735431048141,-1667.91,0.00017935,2]
[346961193,1735431048151,-500.0,0.00017936,2]
[346961194,1735431048160,-500.0,0.00017936,2]
[346961195,1735431048170,-500.0,0.00017936,2]
[346961196,1735431048179,-1974.64,0.00017936,2]
[346961197,1735431048189,-500.0,0.00017936,2]
[346961198,1735431048200,-533.56,0.00017936,2]
[346961199,1735431048209,-557.24494988,0.00018145,2]
[346961200,1735431048219,-500.0,0.00018205,2]
[346961201,1735431048229,-600.87,0.00018205,2]
[346961202,1735431048242,-500.0,0.00018205,2]
[346961203,1735431048251,-500.0,0.00018205,2]
[346961204,1735431048260,-500.0,0.00018206,2]
[346961205,1735431048270,-500.0,0.00018206,2]
[346961206,1735431048279,-500.0,0.00018206,2]
[346961207,1735431048289,-500.0,0.00018206,2]
[346961208,1735431048298,-500.0,0.00018206,2]
[346961209,1735431048308,-500.0,0.00018206,2]
[346961210,1735431048318,-500.0,0.00018206,2]